[Event "Titled Tuesday Blitz May 03 Late 2022"]
[White "Korchmar, Vasiliy"]
[Black "Rytenko, Vsevolod"]
[WhiteFideId "24131750"]
[BlackFideId "14133040"]
[WhiteElo "2370"]
[BlackElo "2120"]
[Result "1/2-1/2"]
[Round "07"]
[TimeControl "180+1"]
[Date "2022.05.03"]
[WhiteClock "0:00:04"]
[BlackClock "0:00:22"]

1. e4 {[%clk 0:03:00]}  d6 {[%clk 0:02:59]} 2. d4 {[%clk 0:03:00]}  Nf6 {[%clk 0:02:59]} 3. Nc3 {[%clk 0:03:01]}  g6 {[%clk 0:03:00]} 4. g3 {[%clk 0:03:01]}  Bg7 {[%clk 0:03:00]} 5. Bg2 {[%clk 0:03:02]}  O-O {[%clk 0:03:01]} 6. Nge2 {[%clk 0:03:02]}  c5 {[%clk 0:03:01]} 7. dxc5 {[%clk 0:02:39]}  dxc5 {[%clk 0:02:59]} 8. Qxd8 {[%clk 0:02:40]}  Rxd8 {[%clk 0:02:56]} 9. e5 {[%clk 0:02:41]}  Ng4 {[%clk 0:02:55]} 10. f4 {[%clk 0:02:31]}  Nc6 {[%clk 0:02:55]} 11. h3 {[%clk 0:02:29]}  Nh6 {[%clk 0:02:54]} 12. g4 {[%clk 0:02:22]}  Nb4 {[%clk 0:02:47]} 13. Be4 {[%clk 0:02:11]}  f5 {[%clk 0:02:48]} 14. exf6 {[%clk 0:02:10]}  exf6 {[%clk 0:02:47]} 15. Be3 {[%clk 0:02:09]}  Re8 {[%clk 0:02:11]} 16. O-O-O {[%clk 0:01:39]}  Nxa2+ {[%clk 0:01:45]} 17. Kb1 {[%clk 0:01:39]}  Nxc3+ {[%clk 0:01:40]} 18. Nxc3 {[%clk 0:01:40]}  f5 {[%clk 0:01:35]} 19. Bd5+ {[%clk 0:01:39]}  Be6 {[%clk 0:01:33]} 20. g5 {[%clk 0:01:30]}  Bxc3 {[%clk 0:01:30]} 21. Bxc5 {[%clk 0:01:21]}  Bg7 {[%clk 0:01:15]} 22. gxh6 {[%clk 0:01:17]}  Bxh6 {[%clk 0:01:14]} 23. Bxb7 {[%clk 0:01:13]}  Rab8 {[%clk 0:01:13]} 24. Bc6 {[%clk 0:01:05]}  Rec8 {[%clk 0:01:10]} 25. Bxa7 {[%clk 0:01:04]}  Rb4 {[%clk 0:00:55]} 26. Bd7 {[%clk 0:01:01]}  Bxd7 {[%clk 0:00:49]} 27. Rxd7 {[%clk 0:01:02]}  Bg7 {[%clk 0:00:47]} 28. b3 {[%clk 0:00:48]}  Rxf4 {[%clk 0:00:47]} 29. Re1 {[%clk 0:00:47]}  Re4 {[%clk 0:00:44]} 30. Rxe4 {[%clk 0:00:39]}  fxe4 {[%clk 0:00:45]} 31. Bd4 {[%clk 0:00:33]}  Bf8 {[%clk 0:00:29]} 32. c4 {[%clk 0:00:25]}  Re8 {[%clk 0:00:29]} 33. Be3 {[%clk 0:00:24]}  Re6 {[%clk 0:00:22]} 34. Kc2 {[%clk 0:00:23]}  Rf6 {[%clk 0:00:22]} 35. c5 {[%clk 0:00:20]}  Rf3 {[%clk 0:00:20]} 36. Kd2 {[%clk 0:00:14]}  Rxh3 {[%clk 0:00:17]} 37. c6 {[%clk 0:00:14]}  Bb4+ {[%clk 0:00:18]} 38. Ke2 {[%clk 0:00:10]}  Rh2+ {[%clk 0:00:18]} 39. Kd1 {[%clk 0:00:07]}  Rh1+ {[%clk 0:00:17]} 40. Kc2 {[%clk 0:00:07]}  Rh2+ {[%clk 0:00:17]} 41. Kb1 {[%clk 0:00:04]}  Rh1+ {[%clk 0:00:17]} 42. Kb2 {[%clk 0:00:03]}  Rh2+ {[%clk 0:00:17]} 43. Kc1 {[%clk 0:00:03]}  Rh1+ {[%clk 0:00:18]} 44. Kc2 {[%clk 0:00:04]}  Rh2+ {[%clk 0:00:18]} 45. Kd1 {[%clk 0:00:04]}  Rh1+ {[%clk 0:00:19]} 46. Ke2 {[%clk 0:00:05]}  Rh2+ {[%clk 0:00:19]} 47. Kf1 {[%clk 0:00:04]}  Rc2 {[%clk 0:00:19]} 48. c7 {[%clk 0:00:05]}  Ba5 {[%clk 0:00:19]} 49. Rd8+ {[%clk 0:00:05]}  Kf7 {[%clk 0:00:20]} 50. c8=Q {[%clk 0:00:05]}  Rxc8 {[%clk 0:00:19]} 51. Rxc8 {[%clk 0:00:06]}  Ke6 {[%clk 0:00:19]} 52. Ra8 {[%clk 0:00:06]}  Bc3 {[%clk 0:00:18]} 53. Rc8 {[%clk 0:00:06]}  Be5 {[%clk 0:00:18]} 54. Rc4 {[%clk 0:00:06]}  Kd5 {[%clk 0:00:18]} 55. Rc5+ {[%clk 0:00:06]}  Ke6 {[%clk 0:00:18]} 56. b4 {[%clk 0:00:07]}  Bd6 {[%clk 0:00:17]} 57. Rc4 {[%clk 0:00:06]}  Kd5 {[%clk 0:00:18]} 58. Rd4+ {[%clk 0:00:06]}  Ke5 {[%clk 0:00:18]} 59. Rc4 {[%clk 0:00:05]}  Kd5 {[%clk 0:00:19]} 60. Rd4+ {[%clk 0:00:05]}  Ke5 {[%clk 0:00:19]} 61. b5 {[%clk 0:00:05]}  Bc5 {[%clk 0:00:19]} 62. Rxe4+ {[%clk 0:00:03]}  Kxe4 {[%clk 0:00:19]} 63. Bxc5 {[%clk 0:00:04]}  Kd5 {[%clk 0:00:20]} 64. b6 {[%clk 0:00:03]}  Kc6 {[%clk 0:00:20]} 65. Kg2 {[%clk 0:00:04]}  g5 {[%clk 0:00:20]} 66. Kg3 {[%clk 0:00:04]}  h5 {[%clk 0:00:21]} 67. Be3 {[%clk 0:00:04]}  Kb7 {[%clk 0:00:20]} 68. Kf3 {[%clk 0:00:04]}  Kc6 {[%clk 0:00:20]} 69. Ke4 {[%clk 0:00:04]}  h4 {[%clk 0:00:21]} 70. Kf3 {[%clk 0:00:04]}  Kb7 {[%clk 0:00:21]} 71. Kg4 {[%clk 0:00:04]}  Kc6 {[%clk 0:00:21]} 72. Bg1 {[%clk 0:00:03]}  Kb7 {[%clk 0:00:20]} 73. Bf2 {[%clk 0:00:03]}  Kc6 {[%clk 0:00:20]} 74. Bg1 {[%clk 0:00:02]}  Kb7 {[%clk 0:00:21]} 75. Kxg5 {[%clk 0:00:02]}  h3 {[%clk 0:00:21]} 76. Kh4 {[%clk 0:00:03]}  h2 {[%clk 0:00:22]} 77. Bxh2 {[%clk 0:00:04]}  Kxb6 {[%clk 0:00:22]} 1/2-1/2


[Site "https://www.chess.com"]

[Event "Titled Tuesday Blitz May 03 Late 2022"]
[White "Kujawski, Adam"]
[Black "Bernal Moro, Luis Javier"]
[WhiteFideId "1100920"]
[BlackFideId "2200236"]
[WhiteElo "2053"]
[BlackElo "2373"]
[Result "0-1"]
[Round "07"]
[TimeControl "180+1"]
[Date "2022.05.03"]
[WhiteClock "0:00:03"]
[BlackClock "0:00:32"]

1. e4 {[%clk 0:02:58]}  c5 {[%clk 0:02:52]} 2. Nf3 {[%clk 0:02:58]}  e6 {[%clk 0:02:49]} 3. d4 {[%clk 0:02:57]}  cxd4 {[%clk 0:02:50]} 4. Nxd4 {[%clk 0:02:58]}  Nc6 {[%clk 0:02:50]} 5. Nc3 {[%clk 0:02:57]}  a6 {[%clk 0:02:47]} 6. Nxc6 {[%clk 0:02:39]}  bxc6 {[%clk 0:02:46]} 7. Bd3 {[%clk 0:02:39]}  d5 {[%clk 0:02:44]} 8. O-O {[%clk 0:02:39]}  Nf6 {[%clk 0:02:44]} 9. Re1 {[%clk 0:02:39]}  Qc7 {[%clk 0:02:41]} 10. Bg5 {[%clk 0:02:31]}  Be7 {[%clk 0:02:40]} 11. e5 {[%clk 0:02:27]}  Nd7 {[%clk 0:02:27]} 12. Bxe7 {[%clk 0:02:27]}  Kxe7 {[%clk 0:02:27]} 13. Qg4 {[%clk 0:02:21]}  Kf8 {[%clk 0:02:26]} 14. f4 {[%clk 0:02:07]}  g6 {[%clk 0:02:00]} 15. Kh1 {[%clk 0:01:35]}  c5 {[%clk 0:01:58]} 16. f5 {[%clk 0:01:22]}  gxf5 {[%clk 0:01:55]} 17. Qh4 {[%clk 0:01:22]}  h5 {[%clk 0:01:46]} 18. Bxf5 {[%clk 0:01:12]}  Bb7 {[%clk 0:01:17]} 19. Bxe6 {[%clk 0:00:32]}  fxe6 {[%clk 0:01:16]} 20. Rf1+ {[%clk 0:00:32]}  Ke8 {[%clk 0:01:16]} 21. Rae1 {[%clk 0:00:31]}  Nf8 {[%clk 0:01:05]} 22. Rf6 {[%clk 0:00:18]}  Qg7 {[%clk 0:00:59]} 23. Ref1 {[%clk 0:00:17]}  d4 {[%clk 0:00:58]} 24. Ne4 {[%clk 0:00:16]}  Bxe4 {[%clk 0:00:49]} 25. Qxe4 {[%clk 0:00:15]}  Rc8 {[%clk 0:00:42]} 26. Qf4 {[%clk 0:00:08]}  Nd7 {[%clk 0:00:35]} 27. Rf7 {[%clk 0:00:07]}  Qg4 {[%clk 0:00:35]} 28. Re7+ {[%clk 0:00:02]}  Kxe7 {[%clk 0:00:33]} 29. Qf7+ {[%clk 0:00:03]}  Kd8 {[%clk 0:00:34]} 30. c3 {[%clk 0:00:03]}  d3 {[%clk 0:00:32]} 0-1


[Site "https://www.chess.com"]

[Event "Titled Tuesday Blitz May 03 Late 2022"]
[White "Martinez Reyes, Pedro Ramon"]
[Black "Bas Mas, Jose Joaquin"]
[WhiteFideId "3901807"]
[BlackFideId "22219064"]
[WhiteElo "2410"]
[BlackElo "2212"]
[Result "1-0"]
[Round "07"]
[TimeControl "180+1"]
[Date "2022.05.03"]
[WhiteClock "0:00:32"]
[BlackClock "0:00:09"]

1. Nf3 {[%clk 0:03:00]}  e6 {[%clk 0:02:59]} 2. d3 {[%clk 0:03:00]}  c5 {[%clk 0:02:57]} 3. Nbd2 {[%clk 0:03:01]}  Nc6 {[%clk 0:02:57]} 4. g3 {[%clk 0:03:02]}  g6 {[%clk 0:02:58]} 5. Bg2 {[%clk 0:03:03]}  Bg7 {[%clk 0:02:58]} 6. O-O {[%clk 0:03:04]}  Nge7 {[%clk 0:02:59]} 7. e4 {[%clk 0:03:05]}  d6 {[%clk 0:02:59]} 8. a4 {[%clk 0:03:05]}  a6 {[%clk 0:02:58]} 9. c3 {[%clk 0:03:06]}  O-O {[%clk 0:02:58]} 10. h4 {[%clk 0:03:06]}  Rb8 {[%clk 0:02:58]} 11. h5 {[%clk 0:03:07]}  b5 {[%clk 0:02:57]} 12. axb5 {[%clk 0:03:06]}  axb5 {[%clk 0:02:58]} 13. hxg6 {[%clk 0:03:07]}  hxg6 {[%clk 0:02:57]} 14. Ng5 {[%clk 0:03:06]}  b4 {[%clk 0:02:54]} 15. c4 {[%clk 0:03:05]}  Nd4 {[%clk 0:02:53]} 16. Ndf3 {[%clk 0:03:05]}  Nec6 {[%clk 0:02:51]} 17. Nxd4 {[%clk 0:03:03]}  Nxd4 {[%clk 0:02:50]} 18. Qg4 {[%clk 0:03:04]}  f6 {[%clk 0:02:24]} 19. Nf3 {[%clk 0:03:03]}  Nb3 {[%clk 0:02:19]} 20. Ra7 {[%clk 0:03:01]}  Rf7 {[%clk 0:02:14]} 21. Rxf7 {[%clk 0:02:53]}  Kxf7 {[%clk 0:02:15]} 22. Be3 {[%clk 0:02:51]}  e5 {[%clk 0:02:11]} 23. Qh4 {[%clk 0:02:51]}  Qh8 {[%clk 0:02:06]} 24. Rb1 {[%clk 0:02:38]}  Ra8 {[%clk 0:02:00]} 25. Qxh8 {[%clk 0:02:23]}  Bxh8 {[%clk 0:02:00]} 26. Ne1 {[%clk 0:02:24]}  Bg7 {[%clk 0:01:50]} 27. Bf3 {[%clk 0:02:24]}  Ra7 {[%clk 0:01:36]} 28. Bd1 {[%clk 0:02:24]}  Nd4 {[%clk 0:01:36]} 29. Nc2 {[%clk 0:02:23]}  Nxc2 {[%clk 0:01:33]} 30. Bxc2 {[%clk 0:02:24]}  Bd7 {[%clk 0:01:33]} 31. Bb3 {[%clk 0:02:24]}  f5 {[%clk 0:01:32]} 32. f3 {[%clk 0:02:21]}  Ke6 {[%clk 0:01:27]} 33. Kf2 {[%clk 0:02:20]}  Bf6 {[%clk 0:01:27]} 34. Rh1 {[%clk 0:02:19]}  Ra8 {[%clk 0:01:26]} 35. Rh6 {[%clk 0:02:19]}  fxe4 {[%clk 0:01:17]} 36. fxe4 {[%clk 0:02:10]}  Be8 {[%clk 0:01:16]} 37. Rh7 {[%clk 0:02:08]}  Ra1 {[%clk 0:01:13]} 38. Bc2 {[%clk 0:02:02]}  Ra2 {[%clk 0:01:13]} 39. Bc1 {[%clk 0:02:01]}  Ra1 {[%clk 0:01:10]} 40. Be3 {[%clk 0:01:50]}  Ra2 {[%clk 0:01:10]} 41. Bd1 {[%clk 0:01:38]}  Rxb2+ {[%clk 0:01:09]} 42. Ke1 {[%clk 0:01:36]}  Rb1 {[%clk 0:01:05]} 43. Kd2 {[%clk 0:01:36]}  Bf7 {[%clk 0:00:57]} 44. Bg4+ {[%clk 0:01:29]}  Ke7 {[%clk 0:00:58]} 45. Bc8 {[%clk 0:01:30]}  Rb2+ {[%clk 0:00:55]} 46. Kc1 {[%clk 0:01:29]}  Re2 {[%clk 0:00:55]} 47. Bh6 {[%clk 0:01:21]}  Rh2 {[%clk 0:00:52]} 48. Bf8+ {[%clk 0:01:15]}  Kxf8 {[%clk 0:00:52]} 49. Rxh2 {[%clk 0:01:16]}  Bg5+ {[%clk 0:00:50]} 50. Kb2 {[%clk 0:01:16]}  Be3 {[%clk 0:00:50]} 51. Kb3 {[%clk 0:01:14]}  Bd4 {[%clk 0:00:50]} 52. Bb7 {[%clk 0:01:14]}  Kg7 {[%clk 0:00:49]} 53. Ra2 {[%clk 0:01:13]}  Kf6 {[%clk 0:00:48]} 54. Bc8 {[%clk 0:01:10]}  Kg5 {[%clk 0:00:25]} 55. Rh2 {[%clk 0:01:09]}  Kf6 {[%clk 0:00:21]} 56. Rh1 {[%clk 0:01:08]}  Kg7 {[%clk 0:00:19]} 57. Bb7 {[%clk 0:01:04]}  Be8 {[%clk 0:00:19]} 58. Bc8 {[%clk 0:00:58]}  Bf2 {[%clk 0:00:19]} 59. g4 {[%clk 0:00:55]}  Be3 {[%clk 0:00:18]} 60. Be6 {[%clk 0:00:55]}  Bf4 {[%clk 0:00:19]} 61. Ra1 {[%clk 0:00:54]}  g5 {[%clk 0:00:17]} 62. Bf5 {[%clk 0:00:54]}  Bf7 {[%clk 0:00:16]} 63. Ra7 {[%clk 0:00:54]}  Kf6 {[%clk 0:00:15]} 64. Rd7 {[%clk 0:00:55]}  Be3 {[%clk 0:00:15]} 65. Rxd6+ {[%clk 0:00:55]}  Ke7 {[%clk 0:00:16]} 66. Rd7+ {[%clk 0:00:55]}  Kf6 {[%clk 0:00:16]} 67. Rd6+ {[%clk 0:00:54]}  Ke7 {[%clk 0:00:16]} 68. Ra6 {[%clk 0:00:55]}  Bd4 {[%clk 0:00:16]} 69. Ra7+ {[%clk 0:00:55]}  Kf6 {[%clk 0:00:17]} 70. Ra8 {[%clk 0:00:55]}  Ke7 {[%clk 0:00:17]} 71. Rh8 {[%clk 0:00:55]}  Kf6 {[%clk 0:00:17]} 72. Rh7 {[%clk 0:00:55]}  Be3 {[%clk 0:00:15]} 73. Rh3 {[%clk 0:00:52]}  Bd4 {[%clk 0:00:15]} 74. Rf3 {[%clk 0:00:52]}  Ke7 {[%clk 0:00:16]} 75. Rf1 {[%clk 0:00:53]}  Be3 {[%clk 0:00:15]} 76. Bc8 {[%clk 0:00:52]}  Bd4 {[%clk 0:00:15]} 77. Bb7 {[%clk 0:00:52]}  Be3 {[%clk 0:00:15]} 78. Bd5 {[%clk 0:00:53]}  Be8 {[%clk 0:00:15]} 79. Rf5 {[%clk 0:00:52]}  Bf4 {[%clk 0:00:15]} 80. Bg8 {[%clk 0:00:45]}  Kd6 {[%clk 0:00:13]} 81. Rf6+ {[%clk 0:00:44]}  Ke7 {[%clk 0:00:13]} 82. Ra6 {[%clk 0:00:44]}  Be3 {[%clk 0:00:13]} 83. Bd5 {[%clk 0:00:43]}  Bf4 {[%clk 0:00:13]} 84. Re6+ {[%clk 0:00:43]}  Kf8 {[%clk 0:00:12]} 85. Rb6 {[%clk 0:00:39]}  Bg3 {[%clk 0:00:12]} 86. Rb8 {[%clk 0:00:39]}  Ke7 {[%clk 0:00:12]} 87. Rc8 {[%clk 0:00:39]}  Bf4 {[%clk 0:00:11]} 88. Rxc5 {[%clk 0:00:39]}  Be3 {[%clk 0:00:12]} 89. Rc7+ {[%clk 0:00:39]}  Kd6 {[%clk 0:00:12]} 90. Rg7 {[%clk 0:00:38]}  Kc5 {[%clk 0:00:12]} 91. Rc7+ {[%clk 0:00:35]}  Kd4 {[%clk 0:00:12]} 92. Kxb4 {[%clk 0:00:35]}  Kxd3 {[%clk 0:00:12]} 93. c5 {[%clk 0:00:34]}  Bd2+ {[%clk 0:00:12]} 94. Kb3 {[%clk 0:00:33]}  Ba5 {[%clk 0:00:10]} 95. Ra7 {[%clk 0:00:32]}  Bc3 {[%clk 0:00:10]} 96. c6 {[%clk 0:00:33]}  Bd4 {[%clk 0:00:10]} 97. Re7 {[%clk 0:00:32]}  Bg6 {[%clk 0:00:08]} 98. c7 {[%clk 0:00:32]}  Bxe4 {[%clk 0:00:08]} 99. Bxe4+ {[%clk 0:00:32]}  Kxe4 {[%clk 0:00:09]} 100. c8=Q {[%clk 0:00:32]} 1-0


[Site "https://www.chess.com"]

[Event "Titled Tuesday Blitz May 03 Late 2022"]
[White "Mirzoev, Azer"]
[Black "Golubev, Mikhail"]
[WhiteFideId "13400304"]
[BlackFideId "14100983"]
[WhiteElo "2700"]
[BlackElo "2530"]
[Result "0-1"]
[Round "07"]
[TimeControl "180+1"]
[Date "2022.05.03"]
[WhiteClock "0:00:08"]
[BlackClock "0:00:58"]

1. Nf3 {[%clk 0:03:00]}  d6 {[%clk 0:02:57]} 2. c4 {[%clk 0:02:59]}  g6 {[%clk 0:02:56]} 3. Nc3 {[%clk 0:02:59]}  Bg7 {[%clk 0:02:56]} 4. g3 {[%clk 0:02:59]}  Nf6 {[%clk 0:02:56]} 5. Bg2 {[%clk 0:03:00]}  O-O {[%clk 0:02:56]} 6. O-O {[%clk 0:03:00]}  e5 {[%clk 0:02:56]} 7. d3 {[%clk 0:03:01]}  Nc6 {[%clk 0:02:56]} 8. Bg5 {[%clk 0:03:01]}  h6 {[%clk 0:02:54]} 9. Bxf6 {[%clk 0:03:01]}  Bxf6 {[%clk 0:02:53]} 10. Nd2 {[%clk 0:03:01]}  Bg7 {[%clk 0:02:52]} 11. Rb1 {[%clk 0:03:01]}  a5 {[%clk 0:02:52]} 12. a3 {[%clk 0:03:01]}  f5 {[%clk 0:02:47]} 13. b4 {[%clk 0:03:01]}  axb4 {[%clk 0:02:47]} 14. axb4 {[%clk 0:03:01]}  e4 {[%clk 0:02:45]} 15. Nd5 {[%clk 0:03:01]}  exd3 {[%clk 0:02:45]} 16. exd3 {[%clk 0:03:02]}  Nd4 {[%clk 0:02:40]} 17. Re1 {[%clk 0:02:58]}  Be6 {[%clk 0:02:28]} 18. Nb3 {[%clk 0:02:39]}  Bf7 {[%clk 0:02:07]} 19. b5 {[%clk 0:01:35]}  Nxb3 {[%clk 0:02:02]} 20. Qxb3 {[%clk 0:01:24]}  Kh7 {[%clk 0:01:43]} 21. Nf4 {[%clk 0:01:20]}  g5 {[%clk 0:01:30]} 22. Ne6 {[%clk 0:01:16]}  Bxe6 {[%clk 0:01:28]} 23. Rxe6 {[%clk 0:01:17]}  Qd7 {[%clk 0:01:25]} 24. c5 {[%clk 0:00:27]}  dxc5 {[%clk 0:01:21]} 25. Bxb7 {[%clk 0:00:26]}  Rae8 {[%clk 0:01:16]} 26. Rbe1 {[%clk 0:00:25]}  Rxe6 {[%clk 0:01:13]} 27. Rxe6 {[%clk 0:00:24]}  f4 {[%clk 0:01:09]} 28. Be4+ {[%clk 0:00:22]}  Kh8 {[%clk 0:01:09]} 29. Kg2 {[%clk 0:00:17]}  Qf7 {[%clk 0:01:06]} 30. g4 {[%clk 0:00:13]}  f3+ {[%clk 0:01:06]} 31. Kh3 {[%clk 0:00:10]}  h5 {[%clk 0:01:01]} 32. Qd5 {[%clk 0:00:09]}  hxg4+ {[%clk 0:01:00]} 33. Kxg4 {[%clk 0:00:08]}  Qf4+ {[%clk 0:00:58]} 34. Kh5 {[%clk 0:00:08]}  Qh4+ {[%clk 0:00:58]} 35. Kg6 {[%clk 0:00:08]}  Qh6# {[%clk 0:00:58]} 0-1


[Site "https://www.chess.com"]

[Event "Titled Tuesday Blitz May 03 Late 2022"]
[White "Omariev, Maksim"]
[Black "Kruckenhauser, Arthur"]
[WhiteFideId "4193423"]
[BlackFideId "1642812"]
[WhiteElo "2532"]
[BlackElo "2243"]
[Result "1/2-1/2"]
[Round "07"]
[TimeControl "180+1"]
[Date "2022.05.03"]
[WhiteClock "0:00:10"]
[BlackClock "0:00:09"]

1. g4 {[%clk 0:03:00]}  e5 {[%clk 0:02:58]} 2. Bg2 {[%clk 0:03:01]}  h5 {[%clk 0:02:55]} 3. d4 {[%clk 0:02:52]}  exd4 {[%clk 0:02:51]} 4. Qxd4 {[%clk 0:02:40]}  hxg4 {[%clk 0:02:50]} 5. Qxg4 {[%clk 0:02:36]}  Nf6 {[%clk 0:02:43]} 6. Qg3 {[%clk 0:02:11]}  Bd6 {[%clk 0:02:12]} 7. Bf4 {[%clk 0:02:00]}  Bxf4 {[%clk 0:02:03]} 8. Qxf4 {[%clk 0:02:01]}  d5 {[%clk 0:01:59]} 9. Nc3 {[%clk 0:01:58]}  c6 {[%clk 0:01:58]} 10. O-O-O {[%clk 0:01:54]}  Qe7 {[%clk 0:01:51]} 11. e4 {[%clk 0:01:45]}  dxe4 {[%clk 0:01:47]} 12. Bxe4 {[%clk 0:01:31]}  Be6 {[%clk 0:01:42]} 13. Nf3 {[%clk 0:01:26]}  Nbd7 {[%clk 0:01:27]} 14. Rhe1 {[%clk 0:00:50]}  O-O-O {[%clk 0:01:12]} 15. Bf5 {[%clk 0:00:50]}  Nc5 {[%clk 0:01:07]} 16. Rxd8+ {[%clk 0:00:41]}  Rxd8 {[%clk 0:01:08]} 17. Ng5 {[%clk 0:00:37]}  Qd7 {[%clk 0:00:40]} 18. Bxe6 {[%clk 0:00:32]}  Nxe6 {[%clk 0:00:38]} 19. Nxe6 {[%clk 0:00:32]}  fxe6 {[%clk 0:00:39]} 20. Qe3 {[%clk 0:00:25]}  Nd5 {[%clk 0:00:37]} 21. Qxe6 {[%clk 0:00:24]}  Qxe6 {[%clk 0:00:30]} 22. Rxe6 {[%clk 0:00:23]}  Nxc3 {[%clk 0:00:31]} 23. bxc3 {[%clk 0:00:24]}  Rh8 {[%clk 0:00:28]} 24. Kd2 {[%clk 0:00:14]}  Rxh2 {[%clk 0:00:28]} 25. Ke3 {[%clk 0:00:14]}  Rh3+ {[%clk 0:00:26]} 26. f3 {[%clk 0:00:14]}  Rh2 {[%clk 0:00:21]} 27. Kd3 {[%clk 0:00:14]}  Rf2 {[%clk 0:00:20]} 28. Re3 {[%clk 0:00:06]}  Kd7 {[%clk 0:00:18]} 29. c4 {[%clk 0:00:05]}  Kd6 {[%clk 0:00:17]} 30. a3 {[%clk 0:00:05]}  b6 {[%clk 0:00:16]} 31. Kc3 {[%clk 0:00:02]}  g5 {[%clk 0:00:14]} 32. Kd3 {[%clk 0:00:02]}  Kc7 {[%clk 0:00:09]} 33. Kc3 {[%clk 0:00:02]}  Kb7 {[%clk 0:00:10]} 34. Kd3 {[%clk 0:00:03]}  Ka6 {[%clk 0:00:10]} 35. Kc3 {[%clk 0:00:03]}  Ka5 {[%clk 0:00:11]} 36. Kb3 {[%clk 0:00:03]}  a6 {[%clk 0:00:08]} 37. Re5+ {[%clk 0:00:03]}  c5 {[%clk 0:00:07]} 38. Rxg5 {[%clk 0:00:04]}  Rxf3+ {[%clk 0:00:08]} 39. c3 {[%clk 0:00:04]}  Rf1 {[%clk 0:00:07]} 40. Rg6 {[%clk 0:00:04]}  Rb1+ {[%clk 0:00:07]} 41. Kc2 {[%clk 0:00:04]}  Ra1 {[%clk 0:00:06]} 42. Kb2 {[%clk 0:00:05]}  Rf1 {[%clk 0:00:06]} 43. Rh6 {[%clk 0:00:04]}  Rf4 {[%clk 0:00:03]} 44. Kb3 {[%clk 0:00:04]}  b5 {[%clk 0:00:03]} 45. cxb5 {[%clk 0:00:04]}  c4+ {[%clk 0:00:03]} 46. Kc2 {[%clk 0:00:03]}  Rf2+ {[%clk 0:00:03]} 47. Kb1 {[%clk 0:00:03]}  axb5 {[%clk 0:00:04]} 48. Rh8 {[%clk 0:00:02]}  Ka4 {[%clk 0:00:04]} 49. Rb8 {[%clk 0:00:03]}  Kb3 {[%clk 0:00:05]} 50. Rxb5+ {[%clk 0:00:03]}  Kxc3 {[%clk 0:00:05]} 51. a4 {[%clk 0:00:03]}  Rf1+ {[%clk 0:00:04]} 52. Ka2 {[%clk 0:00:04]}  Rc1 {[%clk 0:00:03]} 53. a5 {[%clk 0:00:04]}  Rh1 {[%clk 0:00:03]} 54. a6 {[%clk 0:00:04]}  Rh6 {[%clk 0:00:03]} 55. Ra5 {[%clk 0:00:04]}  Rh8 {[%clk 0:00:01]} 56. a7 {[%clk 0:00:04]}  Ra8 {[%clk 0:00:01]} 57. Ra6 {[%clk 0:00:05]}  Kb4 {[%clk 0:00:02]} 58. Kb2 {[%clk 0:00:05]}  Kb5 {[%clk 0:00:02]} 59. Ra1 {[%clk 0:00:06]}  Kb6 {[%clk 0:00:03]} 60. Kc3 {[%clk 0:00:07]}  Rxa7 {[%clk 0:00:03]} 61. Rb1+ {[%clk 0:00:07]}  Kc6 {[%clk 0:00:03]} 62. Kxc4 {[%clk 0:00:08]}  Ra4+ {[%clk 0:00:04]} 63. Kb3 {[%clk 0:00:08]}  Rh4 {[%clk 0:00:05]} 64. Rc1+ {[%clk 0:00:09]}  Kd5 {[%clk 0:00:05]} 65. Rd1+ {[%clk 0:00:10]}  Ke5 {[%clk 0:00:05]} 66. Kc3 {[%clk 0:00:10]}  Rh3+ {[%clk 0:00:05]} 67. Kc4 {[%clk 0:00:11]}  Rh4+ {[%clk 0:00:05]} 68. Kc5 {[%clk 0:00:11]}  Ke6 {[%clk 0:00:06]} 69. Re1+ {[%clk 0:00:12]}  Kf7 {[%clk 0:00:05]} 70. Kd6 {[%clk 0:00:11]}  Rd4+ {[%clk 0:00:04]} 71. Ke5 {[%clk 0:00:12]}  Rd8 {[%clk 0:00:04]} 72. Rf1+ {[%clk 0:00:12]}  Ke7 {[%clk 0:00:05]} 73. Ra1 {[%clk 0:00:12]}  Rd7 {[%clk 0:00:04]} 74. Rh1 {[%clk 0:00:12]}  Rd2 {[%clk 0:00:04]} 75. Rh7+ {[%clk 0:00:12]}  Kf8 {[%clk 0:00:05]} 76. Rh8+ {[%clk 0:00:12]}  Kg7 {[%clk 0:00:05]} 77. Rh4 {[%clk 0:00:12]}  Re2+ {[%clk 0:00:05]} 78. Kf4 {[%clk 0:00:12]}  Ra2 {[%clk 0:00:05]} 79. Rh1 {[%clk 0:00:12]}  Ra4+ {[%clk 0:00:04]} 80. Ke5 {[%clk 0:00:12]}  Ra5+ {[%clk 0:00:05]} 81. Ke6 {[%clk 0:00:12]}  Ra6+ {[%clk 0:00:05]} 82. Kd7 {[%clk 0:00:12]}  Ra7+ {[%clk 0:00:06]} 83. Kc6 {[%clk 0:00:13]}  Ra6+ {[%clk 0:00:06]} 84. Kb5 {[%clk 0:00:13]}  Rg6 {[%clk 0:00:07]} 85. Re1 {[%clk 0:00:13]}  Rg2 {[%clk 0:00:07]} 86. Kc5 {[%clk 0:00:13]}  Rd2 {[%clk 0:00:07]} 87. Kc4 {[%clk 0:00:13]}  Kg6 {[%clk 0:00:08]} 88. Kc3 {[%clk 0:00:13]}  Rd8 {[%clk 0:00:09]} 89. Rf1 {[%clk 0:00:13]}  Kg5 {[%clk 0:00:09]} 90. Rg1+ {[%clk 0:00:13]}  Kf4 {[%clk 0:00:09]} 91. Rh1 {[%clk 0:00:14]}  Ke4 {[%clk 0:00:09]} 92. Kc4 {[%clk 0:00:14]}  Rc8+ {[%clk 0:00:09]} 93. Kb3 {[%clk 0:00:14]}  Kd3 {[%clk 0:00:10]} 94. Ka4 {[%clk 0:00:14]}  Rb8 {[%clk 0:00:09]} 95. Ka3 {[%clk 0:00:13]}  Kc3 {[%clk 0:00:09]} 96. Rc1+ {[%clk 0:00:12]}  Kd2 {[%clk 0:00:08]} 97. Rc7 {[%clk 0:00:12]}  Ra8+ {[%clk 0:00:09]} 98. Kb3 {[%clk 0:00:12]}  Rb8+ {[%clk 0:00:09]} 99. Kc4 {[%clk 0:00:12]}  Rb1 {[%clk 0:00:09]} 100. Rd7+ {[%clk 0:00:12]}  Ke2 {[%clk 0:00:09]} 101. Rh7 {[%clk 0:00:12]}  Rc1+ {[%clk 0:00:09]} 102. Kd4 {[%clk 0:00:12]}  Rc8 {[%clk 0:00:10]} 103. Rh2+ {[%clk 0:00:12]}  Kf3 {[%clk 0:00:10]} 104. Kd3 {[%clk 0:00:11]}  Kg3 {[%clk 0:00:10]} 105. Rh7 {[%clk 0:00:11]}  Rd8+ {[%clk 0:00:10]} 106. Ke3 {[%clk 0:00:11]}  Kg4 {[%clk 0:00:10]} 107. Re7 {[%clk 0:00:11]}  Rd1 {[%clk 0:00:09]} 108. Ke2 {[%clk 0:00:10]}  Ra1 {[%clk 0:00:08]} 109. Re4+ {[%clk 0:00:10]}  Kf5 {[%clk 0:00:08]} 110. Rb4 {[%clk 0:00:11]}  Ra2+ {[%clk 0:00:08]} 111. Kf3 {[%clk 0:00:11]}  Ke5 {[%clk 0:00:09]} 112. Rb3 {[%clk 0:00:10]} 1/2-1/2


[Site "https://www.chess.com"]